fUST/lending_fUST_20250901
["ID","MTS","AMOUNT","RATE_DAILY","PERIOD"]
[382752146,1756726247774,-480.00000001,0.00013698,2]
[382752147,1756726247783,-480.0,0.00013698,2]
[382752148,1756726247793,-648.6,0.00013698,2]
[382752149,1756726247802,-480.0,0.00013698,2]
[382752150,1756726247816,-480.42453521,0.00013698,2]
[382752151,1756726247825,-480.0,0.00013698,2]
[382752152,1756726247835,-156.14073977,0.00013698,2]
[382752153,1756726247844,-480.0,0.00013698,2]
[382752154,1756726247853,-480.0,0.00013698,2]
[382752155,1756726247863,-482.14795609,0.00013698,2]
[382752156,1756726247872,-723.87,0.00013698,2]
[382752157,1756726247882,-480.0,0.00013698,2]
[382752158,1756726247891,-480.0,0.00013698,2]
[382752159,1756726247903,-482.53434407,0.00013698,2]
[382752160,1756726247912,-480.0,0.00013698,2]
[382752161,1756726247922,-480.0,0.00013698,2]
[382752162,1756726247932,-480.0,0.00013698,2]
[382752163,1756726247941,-480.0,0.00013698,2]
[382752164,1756726247952,-480.0,0.00013698,2]
[382752165,1756726247961,-481.91405631,0.00013698,2]
[382752166,1756726247971,-480.0,0.00013698,2]
[382752167,1756726247981,-710.26,0.00013698,2]
[382752168,1756726247990,-481.05053477,0.00013698,2]
[382752169,1756726248000,-676.27,0.00013698,2]
[382752170,1756726248010,-480.0,0.00013698,2]
[382752171,1756726248020,-480.0,0.00013698,2]
[382752172,1756726248031,-500.0,0.00013698,2]
[382752173,1756726248041,-480.0,0.00013698,2]
[382752174,1756726248051,-480.0,0.00013698,2]
[382752175,1756726248061,-480.0,0.00013698,2]
[382752176,1756726248071,-480.0,0.00013698,2]
[382752177,1756726248081,-480.61885366,0.00013698,2]
[382752178,1756726248092,-559.79,0.00013698,2]
[382752179,1756726248102,-480.0,0.00013698,2]
[382752180,1756726248111,-480.0,0.00013698,2]
[382752181,1756726248121,-480.0,0.00013698,2]
[382752182,1756726248131,-1124.06,0.00013698,2]
[382752183,1756726248142,-569.83,0.00013698,2]
[382752184,1756726248152,-480.0,0.00013698,2]
[382752185,1756726248163,-963.99,0.00013698,2]
[382752186,1756726248173,-1610.05,0.00013698,2]
[382752187,1756726248183,-480.0,0.00013698,2]
[382752188,1756726248193,-480.0,0.00013698,2]
[382752189,1756726248202,-461.63308123,0.00013698,2]
[382752190,1756726248212,-260.04465306,0.00013698,2]
[382752191,1756726248480,-271.44144963,0.00013321,2]
[382752192,1756726248490,-1000.0,0.00013321,2]
[382752193,1756726248501,-1000.0,0.00013321,2]
[382752194,1756726248511,-1000.0,0.00013321,2]
[382752195,1756726248521,-590.90534694,0.00013698,2]
[382752196,1756726248531,-133.92115273,0.00013698,2]
[382752197,1756726250047,-1000.0,0.00013321,2]
[382752198,1756726250057,-1000.0,0.00013321,2]
[382752199,1756726250067,-1000.0,0.00013321,2]
[382752200,1756726250076,-619.16884727,0.00013698,2]
[382752201,1756726250087,-480.0,0.00013698,2]
[382752202,1756726250097,-480.0,0.00013698,2]
[382752203,1756726250108,-526.89653165,0.00013698,2]
[382752204,1756726250117,-739.31,0.00013698,2]
[382752205,1756726250127,-480.0,0.00013698,2]
[382752206,1756726250138,-24439.09274281,0.00013699,2]
[382752209,1756726257047,10000.01,0.00012998,2]
[382752210,1756726257073,10000.01,0.00012998,2]
[382752211,1756726257097,10000.01,0.00012998,2]
[382752212,1756726257121,10000.01,0.00012998,2]
[382752213,1756726257144,10000.01,0.00012998,2]
[382752214,1756726257167,10000.01,0.00012998,2]
[382752215,1756726257192,10000.01,0.00012998,2]
[382752216,1756726257214,10000.01,0.00012998,2]
[382752217,1756726257238,10000.01,0.00012998,2]
[382752218,1756726257262,10000.01,0.00012998,2]
[382752220,1756726262973,300.0,0.00012997,2]
[382752225,1756726269339,164.3546242,0.00012794,2]
[382752228,1756726281188,9535.6553758,0.00012868,2]
[382752229,1756726281211,10000.01,0.00012868,2]
[382752230,1756726281232,10000.01,0.00012868,2]
[382752231,1756726281254,10000.01,0.00012868,2]
[382752232,1756726281276,10000.01,0.00012868,2]
[382752233,1756726281298,10000.01,0.00012868,2]
[382752234,1756726281321,10000.01,0.00012868,2]
[382752235,1756726281343,6508.93471955,0.00012868,2]
[382752250,1756726319763,-8161.88399665,0.00012868,2]
[382752251,1756726319916,-4911.74524903,0.00012868,2]
[382752252,1756726319955,-176.51950194,0.00012998,2]
[382752253,1756726320034,-10000.01,0.00012998,2]
[382752254,1756726320244,-10000.01,0.00012998,2]
[382752255,1756726320412,-10000.01,0.00012998,2]
[382752261,1756726337491,-300.0,0.00012867,2]
[382752264,1756726348973,-849.0,0.00012997,2]
[382752265,1756726349010,-8302.01,0.00012998,2]
[382752266,1756726349106,-10000.01,0.00012998,2]
[382752267,1756726349279,-10000.01,0.00012998,2]
[382752268,1756726349400,-10000.01,0.00012998,2]
[382752270,1756726349556,-2433.94940659,0.00012998,2]
[382752271,1756726349579,-5132.11118682,0.00012998,2]
[382752272,1756726349678,-500.0,0.00013097,2]
[382752273,1756726349706,-500.0,0.00013097,2]
[382752274,1756726349734,-378.03545599,0.00013097,2]
[382752275,1756726349762,-500.0,0.00013097,2]
[382752276,1756726349789,-500.0,0.00013097,2]
[382752277,1756726349817,-415.36850841,0.00013097,2]
[382752278,1756726349846,-500.0,0.00013097,2]
[382752279,1756726349874,-500.0,0.00013097,2]
[382752280,1756726349903,-530.090003,0.00013097,2]
[382752281,1756726349933,-281.33148695,0.00013097,2]
[382752282,1756726349962,-325.23464019,0.00013097,2]
[382752283,1756726350307,-500.0,0.00013097,2]
[382752284,1756726350336,-500.0,0.00013097,2]
[382752285,1756726350365,-500.0,0.00013097,2]
[382752286,1756726350393,-503.16395131,0.00013097,2]
[382752287,1756726350422,-500.0,0.00013097,2]
[382752288,1756726350450,-505.00394446,0.00013097,2]
[382752289,1756726350478,-553.69664648,0.00013097,2]
[382752290,1756726350506,-500.0,0.00013097,2]
[382752291,1756726350533,-500.0,0.00013097,2]
[382752292,1756726350562,-381.22972051,0.00013097,2]
[382752293,1756726350726,-500.0,0.00013097,2]
[382752294,1756726350754,-500.0,0.00013097,2]
[382752295,1756726350781,-500.0,0.00013097,2]
[382752296,1756726350807,-500.0,0.00013097,2]
[382752297,1756726350835,-500.0,0.00013097,2]
[382752298,1756726350868,-500.0,0.00013097,2]
[382752299,1756726351077,-500.0,0.00013097,2]
[382752300,1756726351106,-349.43371109,0.00013097,2]
[382752301,1756726351135,-500.0,0.00013097,2]
[382752302,1756726351162,-500.0,0.00013097,2]
[382752303,1756726351244,-500.0,0.00013097,2]
[382752304,1756726351272,-500.0,0.00013097,2]
[382752305,1756726351300,-500.0,0.00013097,2]
[382752306,1756726351328,-500.0,0.00013097,2]
[382752307,1756726351358,-500.0,0.00013097,2]
[382752308,1756726351387,-500.0,0.00013097,2]
[382752309,1756726351414,-500.0,0.00013097,2]
[382752310,1756726351444,-458.90642094,0.00013097,2]
[382752311,1756726351473,-500.0,0.00013097,2]
[382752312,1756726351500,-500.0,0.00013097,2]
[382752313,1756726351547,-411.59019676,0.00013097,2]
[382752314,1756726351573,-500.0,0.00013097,2]
[382752315,1756726351600,-500.0,0.00013097,2]
[382752316,1756726351629,-500.0,0.00013097,2]
[382752317,1756726351660,-500.0,0.00013097,2]
[382752318,1756726351687,-500.0,0.00013097,2]
[382752319,1756726351715,-500.0,0.00013097,2]
[382752320,1756726351741,-500.0,0.00013097,2]
[382752321,1756726351769,-346.54591849,0.00013097,2]
[382752322,1756726351796,-500.0,0.00013097,2]
[382752323,1756726351982,849.0,0.00012867,2]
[382752324,1756726353009,-364.18728889,0.00013097,2]
[382752327,1756726359008,-632.55853289,0.00012966,2]
[382752332,1756726374157,8206.08817312,0.00012966,2]
[382752334,1756726380516,343.29047227,0.00012997,2]
[382752342,1756726419942,1450.63135461,0.00012998,2]
[382752343,1756726419966,10000.01,0.00012998,2]
[382752344,1756726419988,10000.01,0.00012998,2]
[382752345,1756726420012,10000.01,0.00012998,2]
[382752346,1756726420033,10000.01,0.00012998,2]
[382752347,1756726420057,10000.01,0.00012998,2]
[382752348,1756726420078,10000.01,0.00012998,2]
[382752349,1756726420102,10000.01,0.00012998,2]
[382752350,1756726420123,10000.01,0.00012998,2]
[382752351,1756726420144,10000.01,0.00012998,2]
[382752354,1756726439036,-10000.01,0.00012998,2]
[382752355,1756726439172,-10000.01,0.00012998,2]
[382752356,1756726439305,-10000.01,0.00012998,2]
[382752357,1756726439480,-10000.01,0.00012998,2]
[382752358,1756726439662,-10000.01,0.00012998,2]
[382752359,1756726439787,-10000.01,0.00012998,2]
[382752360,1756726439908,-10000.01,0.00012998,2]
[382752361,1756726440176,-10000.01,0.00012998,2]
[382752362,1756726440320,-10000.01,0.00012998,2]
[382752363,1756726440472,-759.7970599,0.00012998,2]
[382752364,1756726440500,-300.0,0.00013096,2]
[382752365,1756726442248,7880.4158802,0.00012965,2]
[382752371,1756726459432,197.69,0.00012329,2]
[382752377,1756726469846,164.75,0.00012329,2]
[382752379,1756726480536,823.75,0.00012329,2]
[382752392,1756726549764,157.0,8.4e-07,2]
[382752393,1756726550973,157.0,8.4e-07,2]
[382752395,1756726552057,157.0,8.4e-07,2]
[382752396,1756726553251,157.0,8.4e-07,2]
[382752399,1756726554340,157.0,8.4e-07,2]
[382752400,1756726555574,157.0,8.4e-07,2]
[382752401,1756726556764,157.0,8.4e-07,2]
[382752402,1756726557792,157.0,8.4e-07,2]
[382752403,1756726558842,157.0,8.4e-07,2]
[382752404,1756726566250,10000.0,0.00012064,2]
[382752419,1756726639592,1447.526,0.00012707,2]
[382752424,1756726662617,1447.526,0.00012707,2]
[382752426,1756726670819,1447.526,0.00012707,2]
[382752433,1756726694301,779.0,0.00012705,2]
[382752439,1756726717391,779.0,0.00012705,2]
[382752447,1756726740089,779.0,0.00012705,2]
[382752455,1756726763006,779.0,0.00012705,2]
[382752462,1756726781674,310.529889,0.00012575,2]
[382752463,1756726782042,2230.902111,0.000127,2]
[382752464,1756726782065,319.55540936,0.000127,2]
[382752465,1756726785942,779.0,0.00012705,2]
[382752467,1756726798102,827.77,0.00012329,2]
[382752471,1756726810629,779.0,0.00012705,2]
[382752474,1756726833854,779.0,0.00012705,2]
[382752477,1756726856322,313.87249148,0.00012705,2]
[382752479,1756726873208,779.0,0.00012705,2]
[382752533,1756727006654,155.221806,0.0002493,30]
[382752534,1756727010455,4785.0,0.00030499,60]
[382752551,1756727101325,1500.0,0.00012704,2]
[382752553,1756727102742,666.0,0.00012162,2]
[382752555,1756727130209,5183.13750852,0.00012091,2]
[382752556,1756727130232,10000.01,0.00012091,2]
[382752557,1756727130257,10000.01,0.00012091,2]
[382752558,1756727130281,3856.87249148,0.00012091,2]
[382752559,1756727154990,203.87399798,0.00012704,2]
[382752562,1756727163770,442.85338837,0.00012704,2]
[382752584,1756727307411,821.8712919,0.00012059,2]
[382752586,1756727325567,479.0,0.00012704,2]
[382752591,1756727349251,4195.53883027,0.00012725,2]
[382752592,1756727349276,3661.23542214,0.00012725,2]
[382752603,1756727372871,4364.97580925,0.00012725,2]
[382752649,1756727435847,-300.0,0.00012852,2]
[382752650,1756727435857,-300.0,0.00012852,2]
[382752652,1756727435868,-300.0,0.00012852,2]
[382752653,1756727435878,-300.0,0.00012852,2]
[382752654,1756727435888,-300.0,0.00012852,2]
[382752656,1756727435900,-1200.0,0.00012852,2]
[382752658,1756727435909,-101.7661259,0.00012853,2]
[382752659,1756727435920,-446.55424473,0.00012853,2]
[382752660,1756727435932,-13.23879258,0.00012853,2]
[382752661,1756727435942,-360.86900975,0.00012853,2]
[382752663,1756727435958,-1885.36764307,0.00012853,2]
[382752664,1756727435968,-5048.97843638,0.00012853,2]
[382752666,1756727435977,-674.59906841,0.00012853,2]
[382752668,1756727435986,-2698.39627366,0.00012853,2]
[382752669,1756727435996,-6065.32022411,0.00012853,2]
[382752670,1756727436006,-260.76,0.00012962,2]
[382752671,1756727436015,-301.526,0.00013068,2]
[382752672,1756727436024,-500.0,0.00013087,2]
[382752673,1756727436034,-500.0,0.00013087,2]
[382752674,1756727436043,-500.0,0.00013087,2]
[382752675,1756727436053,-500.0,0.00013087,2]
[382752676,1756727436063,-500.0,0.00013087,2]
[382752679,1756727436267,-203.14401694,0.00013087,2]
[382752680,1756727436278,-500.0,0.00013087,2]
[382752681,1756727436288,-500.0,0.00013087,2]
[382752682,1756727436297,-500.0,0.00013087,2]
[382752683,1756727436306,-500.0,0.00013087,2]
[382752684,1756727436318,-500.0,0.00013087,2]
[382752685,1756727436328,-500.0,0.00013087,2]
[382752686,1756727436337,-500.0,0.00013087,2]
[382752687,1756727436347,-500.0,0.00013087,2]
[382752688,1756727436356,-500.0,0.00013087,2]
[382752689,1756727436365,-500.0,0.00013087,2]
[382752690,1756727436374,-500.0,0.00013087,2]
[382752691,1756727436383,-500.0,0.00013087,2]
[382752692,1756727436392,-500.0,0.00013087,2]
[382752693,1756727436402,-500.0,0.00013087,2]
[382752694,1756727436411,-500.0,0.00013087,2]
[382752695,1756727436420,-500.0,0.00013087,2]
[382752696,1756727436429,-500.0,0.00013087,2]
[382752697,1756727436439,-500.0,0.00013087,2]
[382752698,1756727436448,-500.0,0.00013087,2]
[382752699,1756727436457,-500.0,0.00013087,2]
[382752700,1756727436466,-500.0,0.00013087,2]
[382752701,1756727436475,-500.0,0.00013087,2]
[382752702,1756727436484,-500.0,0.00013087,2]
[382752703,1756727436493,-500.0,0.00013087,2]
[382752704,1756727436502,-500.0,0.00013087,2]
[382752705,1756727436512,-256.21632466,0.00013087,2]
[382752706,1756727436521,-225.03126384,0.00013087,2]
[382752707,1756727436530,-500.0,0.00013087,2]
[382752708,1756727436539,-500.0,0.00013087,2]
[382752709,1756727436548,-500.0,0.00013087,2]
[382752710,1756727436557,-649.91266709,0.00013087,2]
[382752711,1756727436569,-500.0,0.00013087,2]
[382752712,1756727436578,-500.0,0.00013087,2]
[382752713,1756727436588,-500.0,0.00013087,2]
[382752714,1756727436597,-500.0,0.00013087,2]
[382752715,1756727436607,-500.0,0.00013087,2]
[382752716,1756727436617,-500.0,0.00013087,2]
[382752717,1756727436626,-500.0,0.00013087,2]
[382752718,1756727436635,-165.95793232,0.00013087,2]
[382752719,1756727436644,-500.0,0.00013087,2]
[382752720,1756727436653,-500.0,0.00013087,2]
[382752721,1756727436663,-500.0,0.00013087,2]
[382752722,1756727436672,-500.0,0.00013087,2]
[382752723,1756727436681,-500.0,0.00013087,2]
[382752724,1756727436690,-500.0,0.00013087,2]
[382752725,1756727436699,-500.0,0.00013087,2]
[382752726,1756727436708,-500.0,0.00013087,2]
[382752727,1756727436717,-500.0,0.00013087,2]
[382752728,1756727436727,-500.0,0.00013087,2]
[382752729,1756727436736,-500.0,0.00013087,2]
[382752730,1756727436745,-500.0,0.00013087,2]
[382752731,1756727436754,-634.36274066,0.00013087,2]
[382752732,1756727436763,-500.0,0.00013087,2]
[382752733,1756727436773,-500.0,0.00013087,2]
[382752734,1756727436783,-500.0,0.00013087,2]
[382752735,1756727436792,-500.0,0.00013087,2]
[382752736,1756727436801,-500.0,0.00013087,2]
[382752737,1756727436811,-500.0,0.00013087,2]
[382752738,1756727436820,-500.0,0.00013087,2]
[382752739,1756727436829,-500.0,0.00013087,2]
[382752740,1756727436838,-500.0,0.00013087,2]
[382752741,1756727436847,-476.22271688,0.00013087,2]
[382752742,1756727436856,-500.0,0.00013087,2]
[382752743,1756727436865,-500.0,0.00013087,2]
[382752744,1756727436874,-500.0,0.00013087,2]
[382752745,1756727436883,-500.0,0.00013087,2]
[382752746,1756727436893,-500.0,0.00013087,2]
[382752747,1756727436902,-500.0,0.00013087,2]
[382752748,1756727436911,-500.0,0.00013087,2]
[382752749,1756727436920,-500.0,0.00013087,2]
[382752750,1756727436930,-500.0,0.00013087,2]
[382752751,1756727436941,-500.0,0.00013087,2]
[382752752,1756727436950,-479.0,0.00013088,2]
[382752753,1756727436959,-500.0,0.00013097,2]
[382752754,1756727436968,-2347.87260389,0.00013105,2]
[382752755,1756727436978,-500.0,0.00013371,2]
[382752756,1756727436987,-1048.0,0.00013487,2]
[382752757,1756727436996,-646.0,0.00013499,2]
[382752758,1756727437005,-1048.0,0.00013528,2]
[382752759,1756727437014,-646.0,0.00013554,2]
[382752760,1756727437025,-560.75071586,0.00013593,2]
[382752761,1756727437035,-653.76379574,0.00013593,2]
[382752762,1756727437046,-653.76379574,0.00013593,2]
[382752763,1756727437056,-653.76379574,0.00013593,2]
[382752764,1756727437067,-653.76379574,0.00013593,2]
[382752765,1756727437076,-653.76379574,0.00013593,2]
[382752766,1756727437085,-653.76379574,0.00013593,2]
[382752767,1756727437095,-653.76379574,0.00013593,2]
[382752768,1756727437105,-653.76379574,0.00013593,2]
[382752769,1756727437115,-653.76379574,0.00013593,2]
[382752770,1756727437125,-653.76379574,0.00013593,2]
[382752771,1756727437135,-653.76379574,0.00013593,2]
[382752772,1756727437144,-653.76379574,0.00013593,2]
[382752773,1756727437153,-653.76379574,0.00013593,2]
[382752774,1756727437163,-653.76379574,0.00013593,2]
[382752775,1756727437172,-653.76379574,0.00013593,2]
[382752776,1756727437182,-653.76379574,0.00013593,2]
[382752777,1756727437191,-653.76379574,0.00013593,2]
[382752778,1756727437200,-653.76379574,0.00013593,2]
[382752779,1756727437209,-653.76379574,0.00013593,2]
[382752780,1756727437219,-653.76379574,0.00013593,2]
[382752781,1756727437229,-653.76379574,0.00013593,2]
[382752782,1756727437240,-653.76379574,0.00013593,2]
[382752783,1756727437251,-3378.07637342,0.00013598,2]
[382752784,1756727437262,-1000.0,0.00013598,2]
[382752785,1756727437272,-935.32874886,0.00013598,2]
[382752786,1756727437291,-1560.84570219,0.00013598,2]
[382752813,1756727437795,-19807.73572556,0.00013598,2]
[382752815,1756727437805,-1048.0,0.00013617,2]
[382752817,1756727437815,-500.0,0.00013645,2]
[382752819,1756727437824,-151.0,0.0001369,2]
[382752821,1756727437833,-151.0,0.0001369,2]
[382752823,1756727437843,-151.0,0.0001369,2]
[382752825,1756727437852,-151.0,0.0001369,2]
[382752827,1756727437862,-151.0,0.0001369,2]
[382752829,1756727437871,-151.0,0.0001369,2]
[382752831,1756727437880,-151.0,0.0001369,2]
[382752833,1756727437889,-151.0,0.0001369,2]
[382752835,1756727437899,-250.0,0.0001369,2]
[382752837,1756727437908,-151.0,0.0001369,2]
[382752839,1756727437918,-250.0,0.0001369,2]
[382752841,1756727437928,-151.0,0.0001369,2]
[382752843,1756727437937,-250.0,0.0001369,2]
[382752845,1756727437946,-201.93286099,0.0001369,2]
[382752847,1756727437955,-151.0,0.0001369,2]
[382752849,1756727437964,-250.0,0.0001369,2]
[382752851,1756727437973,-151.0,0.0001369,2]
[382752853,1756727437982,-250.0,0.0001369,2]
[382752855,1756727437992,-151.0,0.0001369,2]
[382752857,1756727438001,-250.0,0.0001369,2]
[382752859,1756727438011,-151.0,0.0001369,2]
[382752861,1756727438020,-250.0,0.0001369,2]
[382752863,1756727438029,-151.0,0.0001369,2]
[382752865,1756727438038,-250.0,0.0001369,2]
[382752867,1756727438048,-250.0,0.0001369,2]
[382752869,1756727438057,-250.0,0.0001369,2]
[382752871,1756727438070,-394.13648197,0.0001369,2]
[382752873,1756727438079,-500.0,0.0001369,2]
[382752875,1756727438089,-500.0,0.0001369,2]
[382752877,1756727438098,-500.0,0.0001369,2]
[382752879,1756727438107,-500.0,0.0001369,2]
[382752881,1756727438116,-250.0,0.0001369,2]
[382752883,1756727438125,-500.0,0.0001369,2]
[382752885,1756727438134,-250.0,0.0001369,2]
[382752888,1756727438146,-250.0,0.0001369,2]
[382752890,1756727438155,-500.0,0.0001369,2]
[382752892,1756727438164,-250.0,0.0001369,2]
[382752894,1756727438173,-500.0,0.0001369,2]
[382752896,1756727438183,-500.0,0.0001369,2]
[382752898,1756727438192,-250.0,0.0001369,2]
[382752900,1756727438202,-500.0,0.0001369,2]
[382752902,1756727438211,-250.0,0.0001369,2]
[382752904,1756727438221,-500.0,0.0001369,2]
[382752906,1756727438231,-250.0,0.0001369,2]
[382752908,1756727438240,-500.0,0.0001369,2]
[382752910,1756727438250,-262.89679858,0.0001369,2]
[382752912,1756727438259,-500.0,0.0001369,2]
[382752914,1756727438268,-480.0,0.00013698,2]
[382752916,1756727438277,-480.0,0.00013698,2]
[382752918,1756727438287,-480.0,0.00013698,2]
[382752920,1756727438296,-481.4279086,0.00013698,2]
[382752922,1756727438306,-203.01101397,0.00013698,2]
[382752924,1756727438316,-480.0,0.00013698,2]
[382752926,1756727438326,-480.0,0.00013698,2]
[382752928,1756727438336,-480.0,0.00013698,2]
[382752930,1756727438346,-480.0,0.00013698,2]
[382752932,1756727438355,-480.0,0.00013698,2]
[382752934,1756727438365,-480.0,0.00013698,2]
[382752935,1756727438374,-480.0,0.00013698,2]
[382752937,1756727438385,-480.0,0.00013698,2]
[382752940,1756727438395,-480.0,0.00013698,2]
[382752941,1756727438404,-664.7,0.00013698,2]
[382752943,1756727438414,-526.07,0.00013698,2]
[382752945,1756727438423,-480.0,0.00013698,2]
[382752947,1756727438433,-480.0,0.00013698,2]
[382752949,1756727438442,-480.0,0.00013698,2]
[382752951,1756727438452,-554.21221643,0.00013698,2]
[382752953,1756727438462,-480.0,0.00013698,2]
[382752956,1756727438472,-480.0,0.00013698,2]
[382752957,1756727438482,-480.0,0.00013698,2]
[382752959,1756727438492,-480.0,0.00013698,2]
[382752962,1756727438502,-480.0,0.00013698,2]
[382752964,1756727438513,-480.0,0.00013698,2]
[382752965,1756727438523,-480.0,0.00013698,2]
[382752967,1756727438533,-670.48,0.00013698,2]
[382752970,1756727438543,-480.66682209,0.00013698,2]
[382752972,1756727438553,-480.0,0.00013698,2]
[382752974,1756727438562,-480.0,0.00013698,2]
[382752976,1756727438572,-480.0,0.00013698,2]
[382752978,1756727438581,-480.0,0.00013698,2]
[382752980,1756727438591,-480.0,0.00013698,2]
[382752982,1756727438601,-481.71395925,0.00013698,2]
[382752984,1756727438610,-480.0,0.00013698,2]
[382752986,1756727438619,-481.73790321,0.00013698,2]
[382752988,1756727438628,-480.0,0.00013698,2]
[382752990,1756727438638,-480.0,0.00013698,2]
[382752992,1756727438647,-480.0,0.00013698,2]
[382752994,1756727438656,-480.0,0.00013698,2]
[382752995,1756727438665,-480.0,0.00013698,2]
[382752997,1756727438675,-480.0,0.00013698,2]
[382752999,1756727438684,-480.0,0.00013698,2]
[382753001,1756727438693,-480.0,0.00013698,2]
[382753003,1756727438703,-480.0,0.00013698,2]
[382753005,1756727438712,-480.0,0.00013698,2]
[382753007,1756727438721,-480.0,0.00013698,2]
[382753009,1756727438731,-480.0,0.00013698,2]
[382753011,1756727438740,-480.0,0.00013698,2]
[382753013,1756727438749,-480.0,0.00013698,2]
[382753015,1756727438758,-484.78963855,0.00013698,2]
[382753017,1756727438767,-480.0,0.00013698,2]
[382753019,1756727438776,-480.0,0.00013698,2]
[382753021,1756727438786,-480.0,0.00013698,2]
[382753023,1756727438795,-480.0,0.00013698,2]
[382753025,1756727438804,-151.52797279,0.00013698,2]
[382753027,1756727438814,-480.0,0.00013698,2]
[382753029,1756727438823,-480.0,0.00013698,2]
[382753031,1756727438832,-480.0,0.00013698,2]
[382753033,1756727438841,-480.0,0.00013698,2]
[382753035,1756727438850,-480.0,0.00013698,2]
[382753037,1756727438859,-480.0,0.00013698,2]
[382753039,1756727438868,-481.18102115,0.00013698,2]
[382753041,1756727438877,-480.0,0.00013698,2]
[382753043,1756727438886,-1000.0,0.00013698,2]
[382753045,1756727438895,-480.0,0.00013698,2]
[382753047,1756727438905,-480.0,0.00013698,2]
[382753049,1756727438914,-480.0,0.00013698,2]
[382753051,1756727438924,-480.0,0.00013698,2]
[382753053,1756727438933,-480.0,0.00013698,2]
[382753055,1756727438943,-480.0,0.00013698,2]
[382753057,1756727438952,-480.0,0.00013698,2]
[382753059,1756727438961,-480.0,0.00013698,2]
[382753061,1756727438970,-526.05,0.00013698,2]
[382753063,1756727438980,-480.0,0.00013698,2]
[382753065,1756727438989,-480.0,0.00013698,2]
[382753067,1756727438998,-480.0,0.00013698,2]
[382753069,1756727439008,-480.0,0.00013698,2]
[382753071,1756727439017,-480.0,0.00013698,2]
[382753073,1756727439026,-481.51341074,0.00013698,2]
[382753075,1756727439035,-480.0,0.00013698,2]
[382753077,1756727439044,-480.0,0.00013698,2]
[382753079,1756727439054,-579.73,0.00013698,2]
[382753081,1756727439064,-480.0,0.00013698,2]
[382753083,1756727439073,-480.0,0.00013698,2]
[382753085,1756727439082,-517.89,0.00013698,2]
[382753087,1756727439091,-481.94988044,0.00013698,2]
[382753089,1756727439100,-480.0,0.00013698,2]
[382753091,1756727439109,-480.0,0.00013698,2]
[382753093,1756727439119,-480.0,0.00013698,2]
[382753095,1756727439128,-480.0,0.00013698,2]
[382753097,1756727439138,-480.0,0.00013698,2]
[382753099,1756727439147,-480.0,0.00013698,2]
[382753101,1756727439157,-480.0,0.00013698,2]
[382753103,1756727439166,-480.0,0.00013698,2]
[382753105,1756727439175,-480.0,0.00013698,2]
[382753107,1756727439184,-480.0,0.00013698,2]
[382753109,1756727439193,-480.0,0.00013698,2]
[382753111,1756727439202,-482.06897968,0.00013698,2]
[382753113,1756727439211,-480.0,0.00013698,2]
[382753115,1756727439221,-118.4643501,0.00013698,2]
[382753118,1756727439239,-361.5356499,0.00013698,2]